[Event "Live Chess"]
[Site "Chess.com"]
[Date "2024.06.01"]
[Round "-"]
[White "Delacorta"]
[Black "Queensandpawns"]
[Result "1/2-1/2"]
[WhiteElo "1482"]
[BlackElo "2422"]
[TimeControl "300"]
[EndTime "11:56:53 PDT"]
[Termination "Game drawn - timeout vs insufficient material"]

1. d4 {[%clk 0:04:57]} 1... e5 {[%clk 0:04:59.9]} 2. Nf3 {[%clk 0:04:55.2]} 2...
e4 {[%clk 0:04:59.1]} 3. Nfd2 {[%clk 0:04:54.2]} 3... e3 {[%clk 0:04:58.8]} 4.
fxe3 {[%clk 0:04:51.9]} 4... d5 {[%clk 0:04:58.7]} 5. Nf3 {[%clk 0:04:50.2]}
5... g5 {[%clk 0:04:57.8]} 6. g3 {[%clk 0:04:39.6]} 6... g4 {[%clk 0:04:56.3]}
7. Ne5 {[%clk 0:04:37.2]} 7... h5 {[%clk 0:04:54.5]} 8. Nc3 {[%clk 0:04:34.4]}
8... h4 {[%clk 0:04:52.9]} 9. Bg2 {[%clk 0:04:32.5]} 9... Bd6 {[%clk 0:04:45.9]}
10. Bxd5 {[%clk 0:04:26.9]} 10... Bxe5 {[%clk 0:04:39.9]} 11. dxe5 {[%clk
0:04:14.3]} 11... Qe7 {[%clk 0:04:38.6]} 12. Qd4 {[%clk 0:04:01.4]} 12... Nd7
{[%clk 0:04:20]} 13. Bd2 {[%clk 0:03:22.9]} 13... hxg3 {[%clk 0:04:16.9]} 14.
O-O-O {[%clk 0:03:19.8]} 14... Qxe5 {[%clk 0:04:14.4]} 15. Qxg4 {[%clk
0:03:11.8]} 15... Ndf6 {[%clk 0:04:09.2]} 16. Qa4+ {[%clk 0:03:04.7]} 16... Bd7
{[%clk 0:04:06.2]} 17. Qa5 {[%clk 0:02:52]} 17... c6 {[%clk 0:04:01]} 18. Bxf7+
{[%clk 0:02:50.3]} 18... Kxf7 {[%clk 0:03:58.2]} 19. Qxe5 {[%clk 0:02:49.1]}
19... gxh2 {[%clk 0:03:54]} 20. Rdf1 {[%clk 0:02:45.6]} 20... Re8 {[%clk
0:03:53.1]} 21. Qf4 {[%clk 0:02:41.9]} 21... Re6 {[%clk 0:03:35]} 22. e4 {[%clk
0:02:40.5]} 22... Ke8 {[%clk 0:03:30.1]} 23. Rf2 {[%clk 0:02:23.8]} 23... Ne7
{[%clk 0:03:07.7]} 24. Qb8+ {[%clk 0:02:17.7]} 24... Bc8 {[%clk 0:02:58.7]} 25.
Rfxh2 {[%clk 0:02:15.3]} 25... Rf8 {[%clk 0:02:53.5]} 26. Rh8 {[%clk 0:02:09.4]}
26... Nfg8 {[%clk 0:02:49.7]} 27. Qg3 {[%clk 0:02:04.6]} 27... Rg6 {[%clk
0:02:47.5]} 28. Qh4 {[%clk 0:01:53.2]} 28... Rgf6 {[%clk 0:02:42.7]} 29. Qg5
{[%clk 0:01:48.9]} 29... Rg6 {[%clk 0:02:35.7]} 30. Qh5 {[%clk 0:01:46.4]} 30...
Nf6 {[%clk 0:02:24.1]} 31. Rxf8+ {[%clk 0:01:44.4]} 31... Kxf8 {[%clk 0:02:24]}
32. Qh8+ {[%clk 0:01:41.7]} 32... Kf7 {[%clk 0:02:22.1]} 33. e5 {[%clk
0:01:36.3]} 33... Nfg8 {[%clk 0:02:18.1]} 34. Qh5 {[%clk 0:01:31.2]} 34... Bg4
{[%clk 0:02:15.7]} 35. Qh2 {[%clk 0:01:27]} 35... Ke6 {[%clk 0:02:07]} 36. Ne4
{[%clk 0:01:22.8]} 36... Bf5 {[%clk 0:01:59.7]} 37. Nd6 {[%clk 0:01:19.1]} 37...
Bg4 {[%clk 0:01:51.2]} 38. Rg1 {[%clk 0:01:16.8]} 38... Bh5 {[%clk 0:01:33.6]}
39. Rxg6+ {[%clk 0:01:14.5]} 39... Bxg6 {[%clk 0:01:33.5]} 40. Qg3 {[%clk
0:01:12.1]} 40... b5 {[%clk 0:01:22.8]} 41. Qg5 {[%clk 0:01:10.5]} 41... c5
{[%clk 0:01:18]} 42. Ba5 {[%clk 0:01:08.7]} 42... Kd5 {[%clk 0:01:16.9]} 43. Qe3
{[%clk 0:00:59.1]} 43... Kc6 {[%clk 0:01:13.7]} 44. Bd8 {[%clk 0:00:53.1]} 44...
Kd7 {[%clk 0:00:54.7]} 45. Bxe7 {[%clk 0:00:51.3]} 45... Nxe7 {[%clk 0:00:54.6]}
46. Ne4 {[%clk 0:00:49.9]} 46... Ke6 {[%clk 0:00:54.5]} 47. Qf3 {[%clk
0:00:47.9]} 47... Kxe5 {[%clk 0:00:52.9]} 48. Ng5 {[%clk 0:00:43.7]} 48... Bf5
{[%clk 0:00:47.9]} 49. Nf7+ {[%clk 0:00:42.5]} 49... Ke6 {[%clk 0:00:44.3]} 50.
Nh6 {[%clk 0:00:42.4]} 50... Bg6 {[%clk 0:00:42.5]} 51. Qe3+ {[%clk 0:00:39]}
51... Kd6 {[%clk 0:00:42.1]} 52. Ng4 {[%clk 0:00:37]} 52... Nd5 {[%clk
0:00:39.4]} 53. Qe5+ {[%clk 0:00:35.2]} 53... Kc6 {[%clk 0:00:35.1]} 54. Qe6+
{[%clk 0:00:34.1]} 54... Kc7 {[%clk 0:00:32.7]} 55. Qxg6 {[%clk 0:00:34]} 55...
Nb6 {[%clk 0:00:30.7]} 56. Qf7+ {[%clk 0:00:33.4]} 56... Kc6 {[%clk 0:00:29.6]}
57. Ne5+ {[%clk 0:00:32.6]} 57... Kd6 {[%clk 0:00:28.4]} 58. Nd3 {[%clk
0:00:30.4]} 58... c4 {[%clk 0:00:26.3]} 59. Nb4 {[%clk 0:00:28.9]} 59... a5
{[%clk 0:00:22.4]} 60. Na6 {[%clk 0:00:25.9]} 60... Nd5 {[%clk 0:00:18.9]} 61.
Qg6+ {[%clk 0:00:23.9]} 61... Ke5 {[%clk 0:00:17.5]} 62. Nb8 {[%clk 0:00:22.5]}
62... Nf4 {[%clk 0:00:16.4]} 63. Nd7+ {[%clk 0:00:21.8]} 63... Kd4 {[%clk
0:00:13.8]} 64. Qg7+ {[%clk 0:00:20.3]} 64... Ke3 {[%clk 0:00:13.7]} 65. Qe5+
{[%clk 0:00:18.7]} 65... Kf2 {[%clk 0:00:10.8]} 66. Qxf4+ {[%clk 0:00:17.8]}
66... Ke1 {[%clk 0:00:10.7]} 67. Qe5 {[%clk 0:00:15.3]} 67... a4 {[%clk
0:00:10.3]} 68. Qc3+ {[%clk 0:00:14.4]} 68... Kf2 {[%clk 0:00:09.1]} 69. Ne5
{[%clk 0:00:13.8]} 69... a3 {[%clk 0:00:09]} 70. Qg3+ {[%clk 0:00:12.6]} 70...
Kxg3 {[%clk 0:00:08]} 71. bxa3 {[%clk 0:00:11.5]} 71... Kf4 {[%clk 0:00:07.3]}
72. Nc6 {[%clk 0:00:10.2]} 72... Ke3 {[%clk 0:00:07.2]} 73. Na7 {[%clk
0:00:08.8]} 73... Kd4 {[%clk 0:00:07.1]} 74. Nxb5+ {[%clk 0:00:08]} 74... Kc5
{[%clk 0:00:07]} 75. Nc7 {[%clk 0:00:07.6]} 75... Kc6 {[%clk 0:00:06.5]} 76. Ne6
{[%clk 0:00:07.5]} 76... Kd5 {[%clk 0:00:06]} 77. Nf4+ {[%clk 0:00:07.4]} 77...
Ke4 {[%clk 0:00:05.4]} 78. Nd3 {[%clk 0:00:07.3]} 78... Kd5 {[%clk 0:00:05.3]}
79. Nf4+ {[%clk 0:00:06.2]} 79... Kd4 {[%clk 0:00:05.2]} 80. Ne6+ {[%clk
0:00:05.5]} 80... Kd5 {[%clk 0:00:04.4]} 81. Nc7+ {[%clk 0:00:05.4]} 81... Kd4
{[%clk 0:00:04.3]} 82. Na6 {[%clk 0:00:05.2]} 82... Kc3 {[%clk 0:00:03.4]} 83.
Nb4 {[%clk 0:00:05.1]} 83... Kd4 {[%clk 0:00:02.8]} 84. Nc6+ {[%clk 0:00:04.7]}
84... Kc5 {[%clk 0:00:02.7]} 85. Ne5 {[%clk 0:00:04.2]} 85... Kb5 {[%clk
0:00:02.6]} 86. Nxc4 {[%clk 0:00:04]} 86... Ka4 {[%clk 0:00:02.5]} 87. e3 {[%clk
0:00:01.7]} 87... Kb5 {[%clk 0:00:02.4]} 88. e4 {[%clk 0:00:01.6]} 88... Ka6
{[%clk 0:00:02.3]} 89. e5 {[%clk 0:00:01.5]} 89... Kb7 {[%clk 0:00:02.2]} 90. e6
{[%clk 0:00:01.4]} 90... Kc8 {[%clk 0:00:02.1]} 91. e7 {[%clk 0:00:01.2]} 91...
Kd7 {[%clk 0:00:02]} 92. e8=Q+ {[%clk 0:00:01]} 92... Kxe8 {[%clk 0:00:01.6]}
93. a4 {[%clk 0:00:00.4]} 93... Ke7 {[%clk 0:00:01.5]} 94. a5 {[%clk 0:00:00.3]}
94... Kf7 {[%clk 0:00:01.1]} 95. a6 {[%clk 0:00:00.2]} 95... Kg6 {[%clk
0:00:01]} 1/2-1/2

[Event "Live Chess"]
[Site "Chess.com"]
[Date "2024.06.01"]
[Round "-"]
[White "ogpin"]
[Black "Crowded_House"]
[Result "1-0"]
[WhiteElo "2222"]
[BlackElo "1743"]
[TimeControl "300"]
[EndTime "11:56:53 PDT"]
[Termination "ogpin won by resignation"]

1. a4 {[%clk 0:04:57.4]} 1... e6 {[%clk 0:04:59.1]} 2. Ra3 {[%clk 0:04:57.3]}
2... d5 {[%clk 0:04:57.7]} 3. g3 {[%clk 0:04:55.2]} 3... Bxa3 {[%clk 0:04:56.2]}
4. Nxa3 {[%clk 0:04:55.1]} 4... Nf6 {[%clk 0:04:53.2]} 5. b3 {[%clk 0:04:54.5]}
5... O-O {[%clk 0:04:51.3]} 6. Bb2 {[%clk 0:04:53.9]} 6... Nbd7 {[%clk
0:04:48.5]} 7. Bg2 {[%clk 0:04:52.6]} 7... c6 {[%clk 0:04:45.7]} 8. Nf3 {[%clk
0:04:49.8]} 8... Qc7 {[%clk 0:04:41.1]} 9. c4 {[%clk 0:04:45.7]} 9... Rb8 {[%clk
0:04:33.5]} 10. O-O {[%clk 0:04:44]} 10... b6 {[%clk 0:04:32.1]} 11. Ne5 {[%clk
0:04:29.3]} 11... Nxe5 {[%clk 0:04:21.9]} 12. Qa1 {[%clk 0:04:28.5]} 12... Ned7
{[%clk 0:04:17.1]} 13. Rc1 {[%clk 0:04:27.8]} 13... Qb7 {[%clk 0:04:09.4]} 14.
cxd5 {[%clk 0:04:25]} 14... exd5 {[%clk 0:04:07.8]} 15. Nc2 {[%clk 0:04:22.4]}
15... Qa6 {[%clk 0:03:52.9]} 16. Nd4 {[%clk 0:04:00.4]} 16... Bb7 {[%clk
0:03:39]} 17. Nf5 {[%clk 0:03:57.8]} 17... Qxe2 {[%clk 0:03:29.4]} 18. h4 {[%clk
0:03:18.7]} 18... Rfe8 {[%clk 0:03:14.7]} 19. h5 {[%clk 0:03:14.5]} 19... Qxd2
{[%clk 0:03:12.8]} 20. h6 {[%clk 0:03:10.1]} 20... g6 {[%clk 0:03:05.2]} 21.
Bxf6 {[%clk 0:03:06.2]} 21... Re2 {[%clk 0:02:53.3]} 22. Bg5 {[%clk 0:02:58.8]}
22... Qb2 {[%clk 0:02:46.9]} 23. Qxb2 {[%clk 0:02:24.8]} 23... Rxb2 {[%clk
0:02:44.6]} 24. Nd6 {[%clk 0:02:17.2]} 24... f6 {[%clk 0:02:23]} 25. Nxb7 {[%clk
0:02:10.4]} 25... Rxb7 {[%clk 0:02:21.1]} 26. Rxc6 {[%clk 0:02:09.3]} 26... fxg5
{[%clk 0:02:12]} 27. Bxd5+ {[%clk 0:01:54]} 27... Kf8 {[%clk 0:02:10.9]} 28.
Rc8+ {[%clk 0:01:53.2]} 28... Ke7 {[%clk 0:02:10]} 29. Bxb7 {[%clk 0:01:52.3]}
29... Rxb3 {[%clk 0:02:02.5]} 30. Rg8 {[%clk 0:01:50.7]} 30... Kf6 {[%clk
0:01:42.4]} 31. Rg7 {[%clk 0:01:47]} 31... Nf8 {[%clk 0:01:40.2]} 32. Bd5 {[%clk
0:01:39.1]} 32... Ke5 {[%clk 0:01:03.5]} 33. Bxb3 {[%clk 0:01:36.2]} 33... Kf5
{[%clk 0:00:57.3]} 34. Rf7+ {[%clk 0:01:33.6]} 34... Kg4 {[%clk 0:00:55.2]} 35.
Rxf8 {[%clk 0:01:32.3]} 35... Kh5 {[%clk 0:00:54.6]} 36. Bg8 {[%clk 0:01:29.2]}
1-0

[Event "Live Chess"]
[Site "Chess.com"]
[Date "2024.06.01"]
[Round "-"]
[White "matt1979"]
[Black "GEMdzq"]
[Result "0-1"]
[WhiteElo "1374"]
[BlackElo "2288"]
[TimeControl "300"]
[EndTime "11:56:57 PDT"]
[Termination "GEMdzq won by resignation"]

1. f4 {[%clk 0:04:57.7]} 1... g6 {[%clk 0:04:58.1]} 2. Nf3 {[%clk 0:04:56]} 2...
Bg7 {[%clk 0:04:57.7]} 3. d3 {[%clk 0:04:51.7]} 3... d6 {[%clk 0:04:57]} 4. e4
{[%clk 0:04:50.7]} 4... c5 {[%clk 0:04:56.7]} 5. Nc3 {[%clk 0:04:44.7]} 5... Nc6
{[%clk 0:04:56.2]} 6. Be2 {[%clk 0:04:43.8]} 6... Nf6 {[%clk 0:04:55.7]} 7. O-O
{[%clk 0:04:42.6]} 7... O-O {[%clk 0:04:55.1]} 8. Be3 {[%clk 0:04:38.9]} 8...
Ng4 {[%clk 0:04:52.8]} 9. Qd2 {[%clk 0:04:36.2]} 9... Nxe3 {[%clk 0:04:51.3]}
10. Qxe3 {[%clk 0:04:35.3]} 10... Nd4 {[%clk 0:04:51.1]} 11. Rac1 {[%clk
0:04:23]} 11... b5 {[%clk 0:04:50.2]} 12. Qd2 {[%clk 0:04:08.4]} 12... b4 {[%clk
0:04:48.3]} 13. Nd5 {[%clk 0:04:02]} 13... e6 {[%clk 0:04:35.8]} 14. Ne3 {[%clk
0:03:52.2]} 14... Nxe2+ {[%clk 0:04:30.3]} 15. Qxe2 {[%clk 0:03:49.8]} 15...
Bxb2 {[%clk 0:04:29.2]} 16. Rb1 {[%clk 0:03:47.1]} 16... Bg7 {[%clk 0:04:27.6]}
17. Ng5 {[%clk 0:03:39]} 17... h6 {[%clk 0:04:26]} 18. Nf3 {[%clk 0:03:35.1]}
18... Bd7 {[%clk 0:04:25.5]} 19. Ng4 {[%clk 0:03:31.4]} 19... e5 {[%clk
0:04:20.3]} 20. f5 {[%clk 0:03:26.5]} 20... gxf5 {[%clk 0:04:19.5]} 21. exf5
{[%clk 0:03:25.5]} 21... Bxf5 {[%clk 0:04:19.4]} 22. Ne3 {[%clk 0:03:21.6]}
22... Bg6 {[%clk 0:04:17.8]} 23. Qf2 {[%clk 0:03:12.8]} 23... d5 {[%clk
0:04:15.4]} 24. Ng4 {[%clk 0:03:04.1]} 24... e4 {[%clk 0:04:09.6]} 25. Nfe5
{[%clk 0:02:54]} 25... h5 {[%clk 0:04:01.1]} 26. Nxg6 {[%clk 0:02:49.9]} 26...
fxg6 {[%clk 0:03:58.9]} 27. Qxc5 {[%clk 0:02:32.4]} 27... hxg4 {[%clk
0:03:56.4]} 28. Rxf8+ {[%clk 0:02:29.2]} 28... Qxf8 {[%clk 0:03:55.3]} 29. Qxd5+
{[%clk 0:02:27.8]} 29... Kh7 {[%clk 0:03:52.4]} 30. Qxe4 {[%clk 0:02:22.5]}
30... Re8 {[%clk 0:03:33.5]} 31. Qxb4 {[%clk 0:02:13.7]} 31... Qxb4 {[%clk
0:03:01.7]} 32. Rxb4 {[%clk 0:02:10.9]} 32... Re2 {[%clk 0:03:00.6]} 33. Rc4
{[%clk 0:01:59.7]} 33... Bh6 {[%clk 0:02:57.7]} 34. a4 {[%clk 0:01:47.6]} 34...
Be3+ {[%clk 0:02:55.5]} 35. Kf1 {[%clk 0:01:46.5]} 35... Rf2+ {[%clk 0:02:54.7]}
36. Ke1 {[%clk 0:01:39.5]} 36... Rxg2 {[%clk 0:02:53.8]} 37. Rc7+ {[%clk
0:01:34.2]} 37... Kh6 {[%clk 0:02:51.9]} 38. Re7 {[%clk 0:01:18.7]} 38... Bc5
{[%clk 0:02:45.9]} 39. Re2 {[%clk 0:01:16]} 39... Rxe2+ {[%clk 0:02:37.6]} 40.
Kxe2 {[%clk 0:01:14.2]} 40... Bg1 {[%clk 0:02:37.1]} 41. c3 {[%clk 0:01:07.1]}
41... Bxh2 {[%clk 0:02:35.7]} 42. d4 {[%clk 0:01:05.9]} 42... Kg5 {[%clk
0:02:34.9]} 43. d5 {[%clk 0:01:02.3]} 43... Kf5 {[%clk 0:02:26.2]} 44. c4 {[%clk
0:00:56.5]} 44... Ke5 {[%clk 0:02:25.4]} 45. Kf1 {[%clk 0:00:50.7]} 45... Bf4
{[%clk 0:02:23.4]} 46. Kg2 {[%clk 0:00:40.6]} 46... Kd4 {[%clk 0:02:21.1]} 47.
a5 {[%clk 0:00:35.7]} 47... Kxc4 {[%clk 0:02:20]} 48. d6 {[%clk 0:00:34.5]}
48... Bxd6 {[%clk 0:02:18.5]} 0-1

[Event "Live Chess"]
[Site "Chess.com"]
[Date "2024.06.01"]
[Round "-"]
[White "Sokolik_UA"]
[Black "Nathaniel250"]
[Result "0-1"]
[WhiteElo "802"]
[BlackElo "1470"]
[TimeControl "300"]
[EndTime "11:57:15 PDT"]
[Termination "Nathaniel250 won by checkmate"]

1. e4 {[%clk 0:04:58.2]} 1... c5 {[%clk 0:04:58.3]} 2. d4 {[%clk 0:04:57.8]}
2... cxd4 {[%clk 0:04:57.2]} 3. Nf3 {[%clk 0:04:55.7]} 3... Nc6 {[%clk
0:04:54.7]} 4. c3 {[%clk 0:04:54.7]} 4... dxc3 {[%clk 0:04:53.1]} 5. Nxc3 {[%clk
0:04:54.2]} 5... d6 {[%clk 0:04:51.8]} 6. Bd3 {[%clk 0:04:53.8]} 6... Bg4 {[%clk
0:04:50.6]} 7. Be3 {[%clk 0:04:51.7]} 7... e6 {[%clk 0:04:46.4]} 8. O-O {[%clk
0:04:48.1]} 8... Be7 {[%clk 0:04:41.4]} 9. Be2 {[%clk 0:04:47.3]} 9... Nf6
{[%clk 0:04:39]} 10. Nb5 {[%clk 0:04:45.7]} 10... a6 {[%clk 0:04:35.3]} 11. Nbd4
{[%clk 0:04:43.6]} 11... Nxd4 {[%clk 0:04:33.1]} 12. Bxd4 {[%clk 0:04:43.2]}
12... e5 {[%clk 0:04:32]} 13. Bc3 {[%clk 0:04:40.4]} 13... Nxe4 {[%clk
0:04:29.3]} 14. Bb4 {[%clk 0:04:28.8]} 14... O-O {[%clk 0:04:16.8]} 15. Bd3
{[%clk 0:04:20.2]} 15... Nc5 {[%clk 0:04:08.8]} 16. Bxc5 {[%clk 0:04:16.2]}
16... dxc5 {[%clk 0:04:08.7]} 17. Be2 {[%clk 0:04:13.5]} 17... Qxd1 {[%clk
0:04:05.5]} 18. Bxd1 {[%clk 0:04:12.7]} 18... e4 {[%clk 0:04:03.9]} 19. Ne5
{[%clk 0:04:10.2]} 19... Bxd1 {[%clk 0:03:59.9]} 20. Raxd1 {[%clk 0:04:08.8]}
20... Rad8 {[%clk 0:03:56.3]} 21. Rxd8 {[%clk 0:04:01.9]} 21... Rxd8 {[%clk
0:03:56.2]} 22. h3 {[%clk 0:03:59.5]} 22... Bf6 {[%clk 0:03:54.4]} 23. Ng4
{[%clk 0:03:57.4]} 23... Bxb2 {[%clk 0:03:52.1]} 24. Re1 {[%clk 0:03:54.1]}
24... f5 {[%clk 0:03:46.4]} 25. Ne3 {[%clk 0:03:50.6]} 25... g6 {[%clk
0:03:43.1]} 26. Nc4 {[%clk 0:03:48.6]} 26... Bc3 {[%clk 0:03:38.1]} 27. Re2
{[%clk 0:03:35.9]} 27... b5 {[%clk 0:03:33.8]} 28. Ne5 {[%clk 0:03:26.7]} 28...
Bxe5 {[%clk 0:03:32.5]} 29. f3 {[%clk 0:03:24.8]} 29... Bg3 {[%clk 0:03:30.3]}
30. fxe4 {[%clk 0:03:22.6]} 30... Rd1+ {[%clk 0:03:28.5]} 31. Re1 {[%clk
0:03:20.3]} 31... Rxe1# {[%clk 0:03:28.2]} 0-1

[Event "Live Chess"]
[Site "Chess.com"]
[Date "2024.06.01"]
[Round "-"]
[White "peteopeteo"]
[Black "WelshTiger"]
[Result "0-1"]
[WhiteElo "1598"]
[BlackElo "2535"]
[TimeControl "300"]
[EndTime "11:57:17 PDT"]
[Termination "WelshTiger won by resignation"]

1. e4 {[%clk 0:04:59]} 1... c5 {[%clk 0:04:57.4]} 2. a3 {[%clk 0:04:55.2]} 2...
e6 {[%clk 0:04:53.1]} 3. b4 {[%clk 0:04:53.3]} 3... cxb4 {[%clk 0:04:51.7]} 4.
axb4 {[%clk 0:04:53.2]} 4... Bxb4 {[%clk 0:04:51.1]} 5. c3 {[%clk 0:04:52.7]}
5... Be7 {[%clk 0:04:50.3]} 6. d4 {[%clk 0:04:51.4]} 6... d5 {[%clk 0:04:49.3]}
7. Bd3 {[%clk 0:04:47.2]} 7... dxe4 {[%clk 0:04:46.8]} 8. Bxe4 {[%clk 0:04:46]}
8... Nf6 {[%clk 0:04:46.2]} 9. Bd3 {[%clk 0:04:43]} 9... O-O {[%clk 0:04:42.4]}
10. Nf3 {[%clk 0:04:37.7]} 10... a6 {[%clk 0:04:37.8]} 11. O-O {[%clk
0:04:36.7]} 11... Nbd7 {[%clk 0:04:33.8]} 12. Nbd2 {[%clk 0:04:26.5]} 12... Qc7
{[%clk 0:04:31.5]} 13. Qc2 {[%clk 0:04:19.6]} 13... Rd8 {[%clk 0:04:28.3]} 14.
Ne4 {[%clk 0:04:07.4]} 14... Nxe4 {[%clk 0:04:27.5]} 15. Bxe4 {[%clk 0:04:07.3]}
15... Nf8 {[%clk 0:04:24.5]} 16. Ba3 {[%clk 0:03:59.2]} 16... Bxa3 {[%clk
0:04:20.7]} 17. Rxa3 {[%clk 0:03:59.1]} 17... Bd7 {[%clk 0:04:19.3]} 18. Rb1
{[%clk 0:03:54.5]} 18... Bc6 {[%clk 0:04:16.9]} 19. Ne5 {[%clk 0:03:46]} 19...
Bxe4 {[%clk 0:04:13.7]} 20. Qxe4 {[%clk 0:03:45.9]} 20... b5 {[%clk 0:04:11.5]}
21. h3 {[%clk 0:03:20.3]} 21... Rd5 {[%clk 0:03:59]} 22. Rba1 {[%clk 0:02:50.1]}
22... Qb6 {[%clk 0:03:40.1]} 23. Qf3 {[%clk 0:02:24.1]} 23... f6 {[%clk
0:03:30.5]} 24. Nd3 {[%clk 0:02:17.8]} 24... a5 {[%clk 0:03:29.7]} 25. Nc5
{[%clk 0:02:12.3]} 25... a4 {[%clk 0:03:23]} 26. Rb1 {[%clk 0:02:07.5]} 26...
Qc6 {[%clk 0:03:22.1]} 27. Re1 {[%clk 0:01:59.8]} 27... e5 {[%clk 0:03:14.1]}
28. Qe3 {[%clk 0:01:30.2]} 28... Rad8 {[%clk 0:03:11.3]} 29. f4 {[%clk
0:01:17.4]} 29... exd4 {[%clk 0:03:06.3]} 30. cxd4 {[%clk 0:01:05.7]} 30... Rxd4
{[%clk 0:03:05.8]} 31. Rc3 {[%clk 0:00:59.4]} 31... b4 {[%clk 0:02:56.8]} 32.
Rd3 {[%clk 0:00:55.8]} 32... Qxc5 {[%clk 0:02:52.1]} 33. Rxd4 {[%clk 0:00:53.3]}
33... Qxd4 {[%clk 0:02:51]} 34. Qxd4 {[%clk 0:00:49.4]} 34... Rxd4 {[%clk
0:02:50.9]} 0-1

[Event "Live Chess"]
[Site "Chess.com"]
[Date "2024.06.01"]
[Round "-"]
[White "ProfPoisson"]
[Black "booktrunk"]
[Result "1-0"]
[WhiteElo "1262"]
[BlackElo "1356"]
[TimeControl "300"]
[EndTime "11:57:21 PDT"]
[Termination "ProfPoisson won by checkmate"]

1. e4 {[%clk 0:04:55]} 1... b6 {[%clk 0:04:59]} 2. d4 {[%clk 0:04:49.6]} 2...
Bb7 {[%clk 0:04:58.9]} 3. Bd3 {[%clk 0:04:43.8]} 3... e6 {[%clk 0:04:58.8]} 4.
f4 {[%clk 0:04:36.8]} 4... c5 {[%clk 0:04:58.7]} 5. c3 {[%clk 0:04:34.2]} 5...
cxd4 {[%clk 0:04:58.6]} 6. cxd4 {[%clk 0:04:31.6]} 6... Nf6 {[%clk 0:04:49.8]}
7. Nc3 {[%clk 0:04:23.3]} 7... Bb4 {[%clk 0:04:47.7]} 8. Qe2 {[%clk 0:04:10.5]}
8... O-O {[%clk 0:04:42.9]} 9. Nf3 {[%clk 0:04:08.7]} 9... Bxc3+ {[%clk
0:04:33.6]} 10. bxc3 {[%clk 0:04:06.6]} 10... d6 {[%clk 0:04:32.1]} 11. O-O
{[%clk 0:04:05.2]} 11... Nbd7 {[%clk 0:04:30.9]} 12. Ba3 {[%clk 0:03:50.3]}
12... Ne8 {[%clk 0:04:23.2]} 13. e5 {[%clk 0:03:46.8]} 13... Qb8 {[%clk
0:04:19.9]} 14. Ng5 {[%clk 0:03:39.9]} 14... g6 {[%clk 0:04:12.4]} 15. Qe3
{[%clk 0:03:26.8]} 15... Kg7 {[%clk 0:04:10.8]} 16. Qh3 {[%clk 0:03:23.4]} 16...
Rh8 {[%clk 0:04:07.1]} 17. Nxe6+ {[%clk 0:03:09.5]} 17... fxe6 {[%clk
0:04:05.3]} 18. Qxe6 {[%clk 0:03:06.6]} 18... Nf8 {[%clk 0:03:51.1]} 19. Qe7+
{[%clk 0:03:01.1]} 19... Kg8 {[%clk 0:03:49.1]} 20. Bc4+ {[%clk 0:02:58.8]}
20... d5 {[%clk 0:03:44.9]} 21. Qxf8# {[%clk 0:02:56.7]} 1-0